bitfinex-derivatives/quotes_BTCF0:USTF0_20210703
["timestamp","ask_amount","ask_price","bid_price","bid_amount"]
[1625289576963,3.15578514,33602.0,33601.0,0.00602546]
[1625289577765,3.15578514,33602.0,33600.0,0.00602514]
[1625289578064,0.53815088,33601.0,33600.0,0.00602514]
[1625289578165,0.65615088,33601.0,33600.0,0.00602514]
[1625289578566,3.63524782,33601.0,33600.0,0.00602514]
[1625289578766,3.63524782,33601.0,33599.0,0.00602305]
[1625289579268,2.97901938,33600.0,33598.0,0.26960343]
[1625289579368,0.057,33599.0,33598.0,0.26960343]
[1625289579619,1.51788637,33599.0,33598.0,0.61503594]
[1625289579770,1.51788637,33599.0,33598.0,0.62105892]
[1625289579920,1.51788637,33599.0,33598.0,0.26960341]
[1625289580071,1.75846181,33599.0,33598.0,0.26960341]
[1625289580422,0.35657544,33599.0,33598.0,0.26960341]
[1625289580522,1.75836749,33599.0,33598.0,0.26960341]
[1625289581074,5.56296749,33599.0,33598.0,0.26960341]
[1625289581574,4.16117544,33599.0,33598.0,0.26960341]
[1625289581926,5.56280415,33599.0,33598.0,0.26960341]
[1625289582879,5.56280415,33599.0,33598.0,0.00602298]
[1625289583328,7.13862998,33599.0,33598.0,0.00602298]
[1625289583680,7.13862998,33599.0,33597.0,0.00602331]
[1625289584280,1.45783566,33598.0,33597.0,0.09384992]
[1625289584380,1.51683566,33598.0,33597.0,0.09384992]
[1625289584581,1.51683566,33598.0,33597.0,0.00602331]
[1625289586586,1.51683566,33598.0,33596.0,0.00602333]
[1625289586686,1.51683566,33598.0,33596.0,0.09381817]
[1625289586837,1.51683566,33598.0,33597.0,0.0060234]
[1625289586938,0.116,33598.0,33597.0,0.0060234]
[1625289587339,0.116,33598.0,33596.0,0.00602342]
[1625289587442,1.51734132,33598.0,33596.0,0.00602342]
[1625289587737,1.40137413,33597.0,33596.0,0.00602342]
[1625289587837,1.46037413,33597.0,33596.0,0.00602342]
[1625289587941,1.69905413,33597.0,33596.0,0.00602342]
[1625289588138,1.93962957,33597.0,33596.0,0.00602342]
[1625289588639,1.99662957,33597.0,33596.0,0.00602342]
[1625289590697,1.93962957,33597.0,33596.0,0.00602342]
[1625289590898,0.53825544,33597.0,33596.0,0.00602342]
[1625289591048,0.59525544,33597.0,33596.0,0.00602342]
[1625289591198,1.99651959,33597.0,33596.0,0.00602342]
[1625289591599,1.93951959,33597.0,33596.0,0.00602342]
[1625289592853,1.99651959,33597.0,33596.0,0.00602342]
[1625289594509,1.99651959,33597.0,33595.0,0.61451036]
[1625289594860,1.93951959,33597.0,33595.0,0.61451036]
[1625289594961,1.40098003,33596.0,33595.0,0.26341888]
[1625289595063,1.45998003,33596.0,33595.0,0.26341888]
[1625289595261,1.45998003,33596.0,33595.0,0.26944228]
[1625289595665,1.40098003,33596.0,33595.0,0.26944228]
[1625289595916,0.24057544,33597.0,33595.0,1.23475867]
[1625289596065,0.29957544,33597.0,33595.0,1.52796867]
[1625289596314,0.29957544,33597.0,33596.0,0.00602276]
[1625289596468,0.29957544,33597.0,33596.0,2.28800224]
[1625289597165,3.93857544,33597.0,33596.0,2.28800224]
[1625289597265,3.99757544,33597.0,33596.0,2.28800224]
[1625289598765,0.35857544,33597.0,33596.0,2.28800224]
[1625289601625,0.35857544,33597.0,33596.0,1.23478094]
[1625289603631,0.57023544,33597.0,33596.0,1.23478094]
[1625289603833,1.97329404,33597.0,33596.0,0.88388911]
[1625289604230,1.97329404,33597.0,33596.0,0.6207257]
[1625289604680,1.97329404,33597.0,33596.0,0.53290995]
[1625289604980,2.03029404,33597.0,33596.0,0.62073318]
[1625289605080,1.97329404,33597.0,33596.0,0.62073318]
[1625289605229,2.03029404,33597.0,33596.0,0.62073318]
[1625289605432,2.03029404,33597.0,33596.0,0.26947748]
[1625289607186,2.04213312,33597.0,33596.0,0.23077748]
[1625289607287,2.04213312,33597.0,33596.0,0.21427748]
[1625289607389,3.61813795,33597.0,33591.0,0.08783772]
[1625289607687,0.01185654,33596.0,33592.0,0.00601285]
[1625289607789,0.057,33595.0,33592.0,0.00601285]
[1625289607888,1.63247699,33593.0,33592.0,0.00601285]
[1625289607988,1.69147699,33593.0,33592.0,0.00601285]
[1625289608089,1.75047699,33593.0,33592.0,0.00601285]
[1625289608187,1.76233438,33593.0,33590.0,0.08784103]
[1625289608291,0.77872632,33591.0,33590.0,0.08784103]
[1625289608389,0.89672632,33591.0,33588.0,0.08784717]
[1625289608788,0.89672632,33591.0,33589.0,0.00600387]
[1625289608888,5.1473,33590.0,33589.0,0.00600387]
[1625289608988,5.48114,33590.0,33589.0,0.00600387]
[1625289609289,6.88066665,33590.0,33589.0,0.00600387]
[1625289609840,6.88066665,33590.0,33588.0,0.09381866]
[1625289610091,6.88066665,33590.0,33589.0,0.00600381]
[1625289610893,6.88066665,33590.0,33588.0,0.00600394]
[1625289611346,1.45702436,33589.0,33588.0,0.00600394]
[1625289611443,1.57502436,33589.0,33588.0,0.00600394]
[1625289611745,1.57502436,33589.0,33587.0,0.00600402]
[1625289612047,1.57502436,33589.0,33588.0,0.00600402]
[1625289612147,0.175,33589.0,33588.0,0.00600402]
[1625289612246,0.41557544,33589.0,33588.0,0.00600402]
[1625289612497,0.41557544,33589.0,33587.0,0.00600394]
[1625289612602,1.81558308,33589.0,33587.0,0.00600394]
[1625289612699,3.7376,33588.0,33587.0,0.00600394]
[1625289612798,3.7966,33588.0,33587.0,0.00600394]
[1625289612899,3.9126,33588.0,33587.0,0.00600394]
[1625289613050,5.3123139,33588.0,33587.0,0.00600394]
[1625289614103,5.3123139,33588.0,33586.0,0.00600431]
[1625289614301,0.29757544,33587.0,33586.0,0.00600431]
[1625289614403,0.41557544,33587.0,33586.0,0.00600431]
[1625289614654,1.81483541,33587.0,33586.0,0.00600431]
[1625289615505,1.81483541,33587.0,33585.0,0.00600441]
[1625289615705,1.81483541,33587.0,33586.0,0.00600435]
[1625289615957,1.81483541,33587.0,33585.0,0.00600435]
[1625289616308,0.29757544,33586.0,33585.0,0.00600435]
[1625289616407,0.41557544,33586.0,33585.0,0.00600435]
[1625289616712,1.81517861,33586.0,33585.0,0.00600435]
[1625289617111,1.90487861,33586.0,33585.0,0.00600435]
[1625289617210,1.81517861,33586.0,33585.0,0.00600435]
[1625289617713,1.81517861,33586.0,33584.0,0.08778228]
[1625289618216,1.90377861,33586.0,33584.0,0.08778228]
[1625289618365,1.90377861,33586.0,33583.0,0.86356202]
[1625289618513,1.90377861,33586.0,33583.0,0.85586202]
[1625289618615,1.90377861,33586.0,33583.0,0.85286202]
[1625289618817,4.19245674,33585.0,33579.0,1.58017571]
[1625289618916,0.057,33584.0,33579.0,0.35118639]
[1625289619065,0.175,33584.0,33579.0,0.35118639]
[1625289619375,0.175,33584.0,33576.0,1.05355918]
[1625289619376,1.22203514,33580.0,33578.0,0.35103879]
[1625289619468,1.58326514,33580.0,33578.0,0.35103879]
[1625289619569,1.64226514,33580.0,33578.0,0.35103879]
[1625289619818,0.42023,33580.0,33579.0,0.35702307]
[1625289620268,0.90138088,33580.0,33579.0,0.35702307]
[1625289620367,0.90138088,33580.0,33579.0,0.35102094]
[1625289621422,0.90138088,33580.0,33578.0,0.35088272]
[1625289621874,2.12320898,33580.0,33578.0,0.35088272]
[1625289622222,2.12320898,33580.0,33576.0,0.70178567]
[1625289622223,3.8934,33578.0,33577.0,0.35089619]
[1625289622372,4.25197544,33578.0,33577.0,0.35089619]
[1625289623526,4.25197544,33578.0,33576.0,0.70178567]
[1625289623927,0.35857544,33578.0,33577.0,0.35075187]
[1625289624176,0.29957544,33578.0,33577.0,0.35075187]
[1625289624276,0.35857544,33578.0,33576.0,0.70178567]
[1625289624678,0.29957544,33578.0,33577.0,0.7015048]
[1625289624928,0.29957544,33578.0,33577.0,0.70750648]
[1625289625029,0.29957544,33578.0,33577.0,1.75946719]
[1625289630343,0.29957544,33578.0,33577.0,0.70750648]
[1625289630792,0.29957544,33578.0,33577.0,1.75926376]
[1625289634598,0.29957544,33578.0,33577.0,1.75926375]
[1625289636250,0.24057544,33578.0,33577.0,1.75926375]
[1625289636350,0.29957544,33578.0,33577.0,1.75926375]
[1625289637953,0.29957544,33578.0,33577.0,1.97160375]
[1625289640759,0.29957544,33578.0,33577.0,3.19891942]
[1625289643868,1.22434647,33584.0,33577.0,3.19891942]
[1625289643968,1.22434647,33584.0,33577.0,3.25791942]
[1625289644068,1.22434647,33584.0,33578.0,0.00599946]
[1625289644268,1.22434647,33584.0,33578.0,0.06499946]
[1625289644368,1.22434647,33584.0,33583.0,5.1969]
[1625289644471,1.46728896,33586.0,33583.0,6.32832229]
[1625289644569,1.46728896,33586.0,33583.0,6.38732229]
[1625289644969,0.24057544,33586.0,33584.0,1.04506367]
[1625289645070,0.24057544,33586.0,33584.0,1.10406367]
[1625289645369,0.24057544,33586.0,33585.0,0.00599869]
[1625289645472,0.24057544,33586.0,33585.0,0.82528303]
[1625289645570,0.24057544,33586.0,33585.0,0.76628303]
[1625289645920,0.24057544,33586.0,33585.0,0.70728303]
[1625289646670,0.24057544,33586.0,33585.0,0.00599869]
[1625289648526,0.24057544,33586.0,33585.0,0.35675451]
[1625289651329,0.35657544,33586.0,33585.0,0.35675451]
[1625289651479,0.61817544,33586.0,33585.0,0.35675451]
[1625289651731,3.24185578,33586.0,33585.0,0.00599869]
[1625289652280,3.24185578,33586.0,33584.0,0.00599965]
[1625289652482,1.39953991,33585.0,33584.0,0.00599965]
[1625289652581,2.6811592,33585.0,33584.0,0.00599965]
[1625289652681,2.7401592,33585.0,33584.0,0.00599965]
[1625289654482,2.6831592,33585.0,33584.0,0.00599965]
[1625289654784,2.7401592,33585.0,33584.0,0.00599965]
[1625289654883,2.6831592,33585.0,33584.0,0.00599965]
[1625289655884,2.7401592,33585.0,33584.0,0.00599965]
[1625289657589,2.7401592,33585.0,33584.0,0.06499965]
[1625289657689,2.6831592,33585.0,33584.0,0.06499965]
[1625289658490,2.9034392,33585.0,33584.0,0.06499965]
[1625289658740,2.9604392,33585.0,33584.0,0.06499965]
[1625289659242,2.9604392,33585.0,33584.0,0.00599965]
[1625289661297,4.53660868,33585.0,33584.0,0.00599965]
[1625289663201,4.54849598,33585.0,33584.0,0.00599965]
[1625289665404,4.54849598,33585.0,33584.0,0.06499965]
[1625289667865,4.49149598,33585.0,33584.0,0.06499965]
[1625289667966,4.54849598,33585.0,33584.0,0.06499965]
[1625289668469,4.53660868,33585.0,33584.0,0.06499965]
[1625289670570,4.47960868,33585.0,33584.0,0.06499965]
[1625289670821,4.47960868,33585.0,33584.0,0.4171094]
[1625289671422,4.47960868,33585.0,33584.0,0.7692184]
[1625289671671,4.53660868,33585.0,33584.0,0.7692184]
[1625289671822,4.42060868,33585.0,33584.0,1.0151684]
[1625289672824,4.42060868,33585.0,33584.0,2.07150967]
[1625289673427,4.20032868,33585.0,33584.0,2.07150967]
[1625289675080,2.47272868,33585.0,33584.0,2.07150967]
[1625289675585,1.97242868,33585.0,33584.0,6.27740967]
[1625289675684,0.3962592,33585.0,33584.0,6.33640967]
[1625289676287,1.58439939,33594.0,33584.0,7.91763486]
[1625289676586,1.58439939,33594.0,33593.0,0.48115088]
[1625289676735,1.58439939,33594.0,33593.0,0.78836088]
[1625289676936,1.8241868,33595.0,33593.0,1.49123564]
[1625289677035,1.8241868,33595.0,33593.0,1.49723321]
[1625289677336,1.8241868,33595.0,33594.0,0.7087472]
[1625289678036,0.24057544,33595.0,33594.0,0.7087472]
[1625289678340,0.29957544,33595.0,33594.0,0.7087472]
[1625289678441,0.35657544,33595.0,33594.0,0.00599778]
[1625289678740,1.9394623,33595.0,33594.0,0.00599778]
[1625289679144,1.9394623,33595.0,33593.0,1.1397496]
[1625289679493,1.8804623,33595.0,33593.0,1.1397496]
[1625289679643,1.63997378,33594.0,33593.0,0.48115088]
[1625289679742,1.69897378,33594.0,33593.0,0.48115088]
[1625289679847,1.98234378,33594.0,33593.0,0.48115088]
[1625289679942,1.98234378,33594.0,33593.0,0.48714899]
[1625289680547,1.98234378,33594.0,33593.0,0.48115088]
[1625289681547,1.99422909,33594.0,33593.0,0.48115088]
[1625289681701,3.75148388,33594.0,33593.0,0.48115088]
[1625289682652,3.75148388,33594.0,33593.0,0.24057544]
[1625289688217,3.73959857,33594.0,33593.0,0.24057544]
[1625289688820,1.98234378,33594.0,33593.0,0.24057544]
[1625289689017,1.99422913,33594.0,33593.0,0.24057544]
[1625289689318,1.98234378,33594.0,33593.0,0.24057544]
[1625289689420,1.69897378,33594.0,33593.0,0.24057544]
[1625289691574,1.97908378,33594.0,33593.0,0.24057544]
[1625289691924,1.99096895,33594.0,33593.0,0.24057544]
[1625289692126,3.75003453,33594.0,33593.0,0.24057544]
[1625289693080,1.99096895,33594.0,33593.0,0.24057544]
[1625289694180,3.74858709,33594.0,33593.0,0.24057544]
[1625289694481,1.99096895,33594.0,33593.0,0.24057544]
[1625289696835,3.74864348,33594.0,33593.0,0.24057544]
[1625289700391,1.99096895,33594.0,33593.0,0.24657676]
[1625289700896,1.93396895,33594.0,33593.0,0.24657676]
[1625289703045,1.87496895,33594.0,33593.0,0.24657676]
[1625289703245,1.86308378,33594.0,33593.0,0.24657676]
[1625289703549,1.87496275,33594.0,33593.0,0.24657676]
[1625289703647,1.93396275,33594.0,33593.0,0.24657676]
[1625289704301,1.92208378,33594.0,33593.0,0.24657676]
[1625289704898,1.93396274,33594.0,33593.0,0.24657676]
[1625289705751,1.87496274,33594.0,33593.0,0.24657676]
[1625289705852,1.93396274,33594.0,33593.0,0.24657676]
[1625289706000,1.92208378,33594.0,33593.0,0.24657676]
[1625289706403,1.9339626,33594.0,33593.0,0.24657676]
[1625289707807,1.9909626,33594.0,33593.0,0.24657676]
[1625289709711,1.6538526,33594.0,33593.0,0.24657676]
[1625289709863,1.6538526,33594.0,33593.0,0.47098676]
[1625289710315,1.6538526,33594.0,33593.0,4.80308676]
[1625289710463,1.6538526,33594.0,33593.0,0.47098676]
[1625289710663,1.5948526,33594.0,33593.0,0.47098676]
[1625289711017,1.58297378,33594.0,33593.0,0.47098676]
[1625289711220,1.58297378,33594.0,33593.0,0.8221194]
[1625289711569,1.59485244,33594.0,33593.0,0.8221194]
[1625289711822,1.58297378,33594.0,33593.0,0.47098676]
[1625289712220,1.58297378,33594.0,33593.0,0.82207497]
[1625289712520,1.64197378,33594.0,33593.0,0.82207497]
[1625289712621,1.65385259,33594.0,33593.0,0.82207497]
[1625289712821,1.65385259,33594.0,33593.0,0.47098676]
[1625289713071,6.06885259,33594.0,33593.0,0.47098676]
[1625289713824,6.27035259,33594.0,33593.0,0.24657676]
[1625289714723,1.85535259,33594.0,33593.0,0.24657676]
[1625289715623,1.65385259,33594.0,33593.0,0.24657676]
[1625289718733,1.71085259,33594.0,33593.0,0.24657676]
[1625289721989,6.17745259,33594.0,33593.0,0.24657676]
[1625289722843,1.71085259,33594.0,33593.0,0.24657676]
[1625289731410,1.99701259,33594.0,33593.0,0.24657676]
[1625289731710,3.75576564,33594.0,33593.0,0.24657676]
[1625289732010,8.30246564,33594.0,33593.0,0.24657676]
[1625289733562,8.30246564,33594.0,33593.0,0.24057544]
[1625289733664,3.75576564,33594.0,33593.0,0.24057544]
[1625289733813,3.75576564,33594.0,33593.0,0.24657672]
[1625289734362,3.75576564,33594.0,33593.0,0.24057544]
[1625289735618,7.33396564,33594.0,33593.0,0.24057544]
[1625289736422,3.75576564,33594.0,33593.0,0.24057544]
[1625289737724,7.64386564,33594.0,33593.0,0.24057544]
[1625289738275,3.75576564,33594.0,33593.0,0.24057544]
[1625289739077,8.79386564,33594.0,33593.0,0.24057544]
[1625289761527,9.00495896,33594.0,33593.0,0.24057544]
[1625289761625,9.04023695,33594.0,33593.0,0.24057544]
[1625289764383,9.04023695,33594.0,33584.0,0.76845759]
[1625289764533,9.04023695,33594.0,33584.0,0.82745759]
[1625289764734,0.04715838,33593.0,33585.0,0.00600313]
[1625289764935,0.057,33592.0,33585.0,0.06500313]
[1625289765136,0.24057544,33586.0,33585.0,0.06500313]
[1625289765236,3.97787544,33586.0,33585.0,0.06500313]
[1625289765338,5.61964433,33586.0,33585.0,0.06500313]
[1625289765438,1.93934433,33586.0,33585.0,0.059]
[1625289765637,1.95122451,33586.0,33585.0,0.06500343]
[1625289768093,1.89422451,33586.0,33585.0,0.06500343]
[1625289768545,1.95122451,33586.0,33585.0,0.06500343]
[1625289768646,2.25672451,33586.0,33585.0,0.00600343]
[1625289769002,4.01374889,33586.0,33585.0,0.00600343]
[1625289769245,8.12864889,33586.0,33585.0,0.00600343]
[1625289769347,8.12864889,33586.0,33584.0,0.24057544]
[1625289769545,8.12864889,33586.0,33584.0,0.29957544]
[1625289769846,0.01188081,33585.0,33584.0,0.29957544]
[1625289769996,3.46541159,33585.0,33584.0,0.29957544]
[1625289770197,3.46541159,33585.0,33584.0,0.30557932]
[1625289771450,3.46541159,33585.0,33584.0,0.29957544]
[1625289777260,3.46541159,33585.0,33584.0,0.22757544]
[1625289777360,3.46541159,33585.0,33584.0,0.16857544]
[1625289784427,3.46541159,33585.0,33577.0,0.52765755]
[1625289784527,3.46541159,33585.0,33577.0,0.58665755]
[1625289784679,1.57920523,33579.0,33578.0,0.00600258]
[1625289784777,6.95090523,33579.0,33578.0,0.06500258]
[1625289785077,6.95090523,33579.0,33578.0,0.00600258]
[1625289785330,7.19148067,33579.0,33578.0,0.00600258]
[1625289785880,1.87878067,33579.0,33578.0,0.00600258]
[1625289788135,2.13104067,33579.0,33578.0,0.00600258]
[1625289788736,6.52204067,33579.0,33578.0,0.00600258]
[1625289789636,2.13104067,33579.0,33578.0,0.00600258]
[1625289791439,2.14292537,33579.0,33578.0,0.00600258]
[1625289792590,2.14292537,33579.0,33578.0,0.06500258]
[1625289793241,1.89066537,33579.0,33578.0,0.27028258]
[1625289793392,1.81978067,33579.0,33578.0,0.27028258]
[1625289793644,0.24057544,33579.0,33578.0,5.04609947]
[1625289793992,0.24057544,33579.0,33578.0,6.45304135]
[1625289794692,1.58161021,33583.0,33578.0,6.45304135]
[1625289794892,1.58161021,33583.0,33578.0,6.51204135]
[1625289795193,1.58161021,33583.0,33579.0,0.00600132]
[1625289795293,1.58161021,33583.0,33582.0,0.24057544]
[1625289795444,1.82359737,33586.0,33582.0,2.58561526]
[1625289795643,1.82359737,33586.0,33582.0,2.64461526]
[1625289795743,1.82359737,33586.0,33582.0,2.650616]
[1625289795847,0.24057544,33586.0,33585.0,1.48019772]
[1625289795995,0.24057544,33586.0,33585.0,1.59819772]
[1625289796094,0.24057544,33586.0,33585.0,5.36189772]
[1625289796194,0.24057544,33586.0,33585.0,6.41571257]
[1625289796294,0.24057544,33586.0,33585.0,6.42171313]
[1625289796594,0.24057544,33586.0,33585.0,7.65074847]
[1625289796744,0.24057544,33586.0,33585.0,3.88704847]
[1625289797344,0.24057544,33586.0,33585.0,4.12762391]
[1625289799498,0.24057544,33586.0,33585.0,4.06862391]
[1625289799700,0.24057544,33586.0,33585.0,2.83958857]
[1625289800000,0.24057544,33586.0,33585.0,2.89858857]
[1625289800101,0.24057544,33586.0,33585.0,2.83958857]
[1625289809119,0.24057544,33586.0,33585.0,2.89858857]
[1625289809220,0.24057544,33586.0,33585.0,7.72978857]
[1625289809369,0.24057544,33586.0,33585.0,2.89858857]
[1625289809520,0.24057544,33586.0,33585.0,2.83958857]
[1625289809870,0.24057544,33586.0,33585.0,8.18748857]
[1625289810220,0.24057544,33586.0,33585.0,2.83958857]
[1625289811026,0.24057544,33586.0,33585.0,7.94528857]
[1625289811424,0.24057544,33586.0,33585.0,8.00428857]
[1625289811624,0.24057544,33586.0,33585.0,9.23369346]
[1625289811924,0.24057544,33586.0,33585.0,9.17469346]
[1625289812526,0.24057544,33586.0,33585.0,4.06899346]
[1625289812627,0.24057544,33586.0,33585.0,2.83958857]
[1625289813227,0.24057544,33586.0,33585.0,7.25148857]
[1625289813426,0.24057544,33586.0,33585.0,2.89858857]
[1625289813727,0.24057544,33586.0,33585.0,2.83958857]
[1625289814630,0.24057544,33586.0,33585.0,2.89858857]
[1625289814731,0.24057544,33586.0,33585.0,2.83958857]
[1625289815784,0.24057544,33586.0,33585.0,7.72498857]
[1625289816536,0.24057544,33586.0,33585.0,2.83958857]
[1625289816734,0.24057544,33586.0,33585.0,4.06840012]
[1625289817234,0.24057544,33586.0,33585.0,2.83958857]
[1625289817335,0.24057544,33586.0,33585.0,2.89858857]
[1625289821493,0.24057544,33586.0,33585.0,4.12703411]
[1625289821640,0.24057544,33586.0,33585.0,8.92993411]
[1625289821741,0.24057544,33594.0,33585.0,8.92993411]
[1625289821844,1.57136682,33596.0,33585.0,8.92993411]
[1625289822143,1.57136682,33596.0,33586.0,0.0060002]
[1625289822243,1.57136682,33596.0,33586.0,0.0650002]
[1625289822348,0.0899,33616.0,33593.0,0.08774029]
[1625289822349,1.81311282,33598.0,33593.0,0.08774029]
[1625289822446,1.81311282,33598.0,33593.0,0.37887029]
[1625289822547,1.81311282,33598.0,33593.0,0.43787029]
[1625289822647,1.81311282,33598.0,33594.0,0.00599982]
[1625289822796,1.81311282,33598.0,33597.0,4.051]
[1625289822797,0.24057544,33598.0,33597.0,4.051]
[1625289822896,0.24057544,33598.0,33597.0,4.11]
[1625289823197,0.24057544,33598.0,33597.0,4.11599937]
[1625289823497,0.24057544,33598.0,33597.0,4.59715025]
[1625289826304,0.24057544,33598.0,33597.0,0.54615025]
[1625289827307,0.24057544,33598.0,33597.0,0.54015088]
[1625289827557,0.24057544,33598.0,33597.0,0.54614998]
[1625289828057,0.24057544,33598.0,33597.0,0.63375658]
[1625289828610,0.24057544,33598.0,33597.0,0.54614998]
[1625289832618,0.47441544,33598.0,33597.0,0.54614998]
[1625289835224,0.24057544,33598.0,33597.0,0.54614998]
[1625289837280,0.24057544,33598.0,33597.0,5.11964998]
[1625289838379,0.24057544,33598.0,33597.0,0.54614998]
[1625289844045,0.29757544,33598.0,33597.0,0.54614998]
[1625289851959,0.30945063,33598.0,33597.0,0.54614998]
[1625289852962,0.30945063,33598.0,33597.0,0.80953442]
[1625289853462,0.30945063,33598.0,33597.0,0.63394479]
[1625289854816,0.50627063,33598.0,33597.0,0.80962433]
[1625289855167,0.56527063,33598.0,33597.0,0.80962433]
[1625289855269,2.13085862,33598.0,33597.0,0.54614998]
[1625289855466,6.42775862,33598.0,33597.0,0.54614998]
[1625289855917,2.13085862,33598.0,33597.0,0.54614998]
[1625289856118,2.13085862,33598.0,33597.0,0.24657454]
[1625289856621,2.13085862,33598.0,33593.0,0.26355075]
[1625289856819,3.86877035,33598.0,33590.0,0.08786064]
[1625289856919,0.01187709,33597.0,33594.0,0.00600137]
[1625289857019,0.07087709,33597.0,33594.0,0.00600137]
[1625289857119,4.4449,33595.0,33594.0,0.00600137]
[1625289857220,4.5609,33595.0,33591.0,0.00600134]
[1625289857321,6.12434902,33595.0,33591.0,0.06500134]
[1625289857421,6.13622611,33595.0,33594.0,0.00600137]
[1625289857622,6.61737699,33595.0,33594.0,0.00600137]
[1625289857774,6.61737699,33595.0,33592.0,0.00600137]
[1625289857872,6.61737699,33595.0,33592.0,0.06500137]
[1625289857971,6.61737699,33595.0,33592.0,0.059]
[1625289858222,0.01187752,33594.0,33592.0,0.059]
[1625289858323,0.07087752,33594.0,33592.0,0.059]
[1625289858623,1.56198979,33593.0,33592.0,0.059]
[1625289858723,1.61898979,33593.0,33592.0,0.059]
[1625289858823,1.68986556,33593.0,33592.0,0.059]
[1625289858924,6.97706556,33593.0,33592.0,0.059]
[1625289859777,1.68986556,33593.0,33592.0,0.059]
[1625289860127,1.67798979,33593.0,33592.0,0.059]
[1625289860378,1.67798979,33593.0,33592.0,0.0650024]
[1625289860783,1.62098979,33593.0,33592.0,0.0650024]
[1625289860981,1.67798979,33593.0,33592.0,0.0650024]
[1625289861282,0.116,33593.0,33592.0,0.41640916]
[1625289861382,0.116,33593.0,33592.0,0.59211254]
[1625289861482,3.9522,33593.0,33592.0,0.59211254]
[1625289861733,3.9522,33593.0,33592.0,0.94353959]
[1625289861933,4.23955,33593.0,33592.0,0.94353959]
[1625289862087,4.23955,33593.0,33592.0,0.0650024]
[1625289862484,5.80227525,33593.0,33592.0,0.0650024]
[1625289862585,5.80227525,33593.0,33592.0,0.0060024]
[1625289863284,5.80227525,33593.0,33591.0,0.48115088]
[1625289863383,5.80227525,33593.0,33591.0,0.54015088]
[1625289864037,1.56220008,33592.0,33591.0,0.54015088]
[1625289864137,1.67820008,33592.0,33591.0,0.54015088]
[1625289870648,1.67820008,33592.0,33591.0,0.48115088]
[1625289871699,1.69007631,33592.0,33591.0,0.48115088]
[1625289872850,1.67820008,33592.0,33591.0,0.48115088]
[1625289883128,7.02150008,33592.0,33591.0,0.48115088]
[1625289883228,1.67820008,33592.0,33591.0,0.48115088]
[1625289883376,0.116,33592.0,33591.0,0.69028088]
[1625289883477,0.12788209,33592.0,33591.0,0.69628129]
[1625289884281,0.116,33592.0,33591.0,0.69628129]
[1625289884628,0.12788194,33592.0,33591.0,0.69628129]
[1625289885029,0.07088194,33592.0,33591.0,0.69628129]
[1625289885179,0.059,33592.0,33591.0,0.69628129]
[1625289885931,0.059,33592.0,33591.0,0.75528129]
[1625289886130,0.059,33592.0,33591.0,0.84305699]
[1625289886431,0.059,33592.0,33591.0,1.0186068]
[1625289887987,0.059,33592.0,33591.0,1.28196606]
[1625289888995,0.48115088,33595.0,33591.0,1.28196606]
[1625289889189,0.54015088,33595.0,33591.0,1.28196606]
[1625289889339,0.48115088,33595.0,33591.0,1.28196606]
[1625289889490,0.48115088,33595.0,33593.0,0.61447821]
[1625289889689,0.48115088,33595.0,33593.0,0.67347821]
[1625289889940,0.48115088,33595.0,33594.0,0.00599898]
[1625289890044,0.48115088,33595.0,33594.0,0.06499898]
[1625289890141,0.48115088,33595.0,33594.0,0.15278593]
[1625289891648,0.48115088,33595.0,33594.0,0.32836216]
[1625289892250,0.48115088,33595.0,33594.0,0.67953429]
[1625289895707,0.48115088,33595.0,33594.0,0.59174734]
[1625289896511,0.48115088,33595.0,33594.0,0.67955165]
[1625289898314,0.54015088,33595.0,33594.0,0.67955165]
[1625289898415,0.85875088,33595.0,33594.0,0.67955165]
[1625289898616,0.85875088,33595.0,33592.0,0.61472679]
[1625289899520,1.55796566,33594.0,33591.0,0.48115088]
[1625289899616,0.057,33593.0,33591.0,0.48115088]
[1625289899717,0.116,33593.0,33591.0,0.48115088]
[1625289900219,0.116,33593.0,33591.0,0.54015088]
[1625289900318,4.4006,33592.0,33591.0,0.54015088]
[1625289900421,4.5166,33592.0,33591.0,0.54015088]
[1625289901222,0.116,33592.0,33591.0,0.54015088]
[1625289901972,3.8417,33592.0,33591.0,0.54015088]
[1625289902473,0.116,33592.0,33591.0,0.54015088]
[1625289902727,0.059,33592.0,33591.0,0.54015088]
[1625289903125,0.059,33592.0,33591.0,0.54614926]
[1625289903326,3.7141,33592.0,33591.0,0.54614926]
[1625289903779,0.059,33592.0,33591.0,0.54614926]
[1625289904130,1.55848801,33594.0,33591.0,0.54614926]
[1625289904230,1.61748801,33594.0,33591.0,0.54614926]
[1625289904381,1.61748801,33594.0,33591.0,0.54015088]
[1625289904882,1.61748801,33594.0,33592.0,0.0059982]
[1625289904986,1.55848801,33594.0,33592.0,0.0649982]
[1625289905084,2.04153892,33595.0,33592.0,0.15285312]
[1625289905434,2.04153892,33595.0,33593.0,0.00599798]
[1625289905534,2.04153892,33595.0,33593.0,0.06499798]
[1625289905936,0.48115088,33595.0,33594.0,0.00599783]
[1625289906037,0.48115088,33595.0,33594.0,0.35362783]
[1625289906392,0.48115088,33595.0,33594.0,0.88075514]
[1625289906741,0.24057544,33598.0,33594.0,0.88075514]
[1625289906842,1.56232643,33599.0,33594.0,0.93975514]
[1625289906946,1.56232643,33599.0,33594.0,1.64255855]
[1625289907045,1.56232643,33599.0,33595.0,0.00599695]
[1625289907145,1.56232643,33599.0,33595.0,0.12399695]
[1625289907344,1.56232643,33599.0,33597.0,3.8626]
[1625289907444,0.057,33605.0,33598.0,0.52707357]
[1625289907445,1.56584688,33602.0,33598.0,0.52707357]
[1625289907544,1.56584688,33602.0,33598.0,0.58607357]
[1625289907848,1.56584688,33602.0,33600.0,0.08784682]
[1625289907946,1.56584688,33602.0,33601.0,0.48115088]
[1625289908047,1.56584688,33602.0,33601.0,0.74956088]
[1625289908198,1.56584688,33602.0,33601.0,0.7555571]
[1625289908298,1.56633634,33603.0,33601.0,0.7555571]
[1625289908448,1.56633634,33603.0,33601.0,0.8145571]
[1625289908698,1.56633634,33603.0,33602.0,0.00599599]
[1625289908798,1.56633634,33603.0,33602.0,0.06499599]
[1625289908952,1.80709522,33605.0,33602.0,0.15281467]
[1625289909248,1.80709522,33605.0,33603.0,0.00599589]
[1625289909399,1.80709522,33605.0,33603.0,0.06499589]
[1625289909749,1.80709522,33605.0,33604.0,0.00599589]
[1625289909950,1.80709522,33605.0,33604.0,0.30557133]
[1625289910050,1.80709522,33605.0,33604.0,0.29957544]
[1625289910551,1.80709522,33605.0,33604.0,0.30557138]
[1625289910751,0.24057544,33605.0,33604.0,0.30557138]
[1625289911103,0.24057544,33605.0,33604.0,0.29957544]
[1625289914510,0.24057544,33605.0,33604.0,0.30557117]
[1625289916016,2.51642352,33607.0,33604.0,0.30557117]
[1625289916116,2.51642352,33607.0,33606.0,4.5322]
[1625289916267,0.951,33607.0,33606.0,4.5322]
[1625289916366,0.951,33607.0,33606.0,4.5912]
[1625289916670,1.56643221,33608.0,33606.0,4.5912]
[1625289917018,1.56643221,33608.0,33607.0,0.00599473]